[Event "Titled Tuesday Blitz August 3 2021"]
[White "Shkapenko, Pavel"]
[Black "Spitzl, Vinzent"]
[WhiteFideId "4151933"]
[BlackFideId "12901253"]
[WhiteElo "2386"]
[BlackElo "2192"]
[Result "0-1"]
[Round "11"]
[TimeControl "180+1"]
[Date "2021.08.03"]
[WhiteClock "0:00:05"]
[BlackClock "0:00:07"]

1. e4 {[%clk 0:03:00]}  e5 {[%clk 0:02:56]} 2. Nf3 {[%clk 0:03:00]}  Nc6 {[%clk 0:02:56]} 3. Bc4 {[%clk 0:02:59]}  Bc5 {[%clk 0:02:56]} 4. c3 {[%clk 0:02:59]}  Nf6 {[%clk 0:02:56]} 5. d4 {[%clk 0:03:00]}  exd4 {[%clk 0:02:55]} 6. b4 {[%clk 0:03:01]}  Bb6 {[%clk 0:02:52]} 7. e5 {[%clk 0:03:01]}  Ne4 {[%clk 0:02:32]} 8. Bd5 {[%clk 0:02:59]}  Nxc3 {[%clk 0:02:28]} 9. Nxc3 {[%clk 0:02:59]}  dxc3 {[%clk 0:02:29]} 10. Bg5 {[%clk 0:02:59]}  Ne7 {[%clk 0:02:22]} 11. O-O {[%clk 0:02:58]}  O-O {[%clk 0:02:09]} 12. Bb3 {[%clk 0:02:56]}  d5 {[%clk 0:02:04]} 13. exd6 {[%clk 0:02:49]}  cxd6 {[%clk 0:02:03]} 14. Qd3 {[%clk 0:02:49]}  Be6 {[%clk 0:01:39]} 15. Rfe1 {[%clk 0:02:44]}  Qd7 {[%clk 0:01:35]} 16. Qxc3 {[%clk 0:01:53]}  Ng6 {[%clk 0:01:23]} 17. h4 {[%clk 0:01:47]}  Bxb3 {[%clk 0:01:13]} 18. Qxb3 {[%clk 0:01:39]}  Ne5 {[%clk 0:01:14]} 19. Nxe5 {[%clk 0:01:36]}  dxe5 {[%clk 0:01:14]} 20. Rad1 {[%clk 0:01:24]}  Qf5 {[%clk 0:01:09]} 21. Rd2 {[%clk 0:01:08]}  h6 {[%clk 0:01:04]} 22. Be3 {[%clk 0:01:07]}  Bxe3 {[%clk 0:01:03]} 23. Rxe3 {[%clk 0:01:07]}  Rfd8 {[%clk 0:01:03]} 24. Rde2 {[%clk 0:01:06]}  Re8 {[%clk 0:00:58]} 25. Qd5 {[%clk 0:00:49]}  b6 {[%clk 0:00:40]} 26. Rxe5 {[%clk 0:00:44]}  Qb1+ {[%clk 0:00:40]} 27. Kh2 {[%clk 0:00:43]}  Red8 {[%clk 0:00:40]} 28. Qc4 {[%clk 0:00:37]}  Rac8 {[%clk 0:00:37]} 29. Qf4 {[%clk 0:00:37]}  Rc1 {[%clk 0:00:28]} 30. Re8+ {[%clk 0:00:29]}  Rxe8 {[%clk 0:00:28]} 31. Rxe8+ {[%clk 0:00:29]}  Kh7 {[%clk 0:00:29]} 32. Qxf7 {[%clk 0:00:20]}  Rh1+ {[%clk 0:00:28]} 33. Kg3 {[%clk 0:00:20]}  Qd3+ {[%clk 0:00:29]} 34. f3 {[%clk 0:00:13]}  Qd6+ {[%clk 0:00:24]} 35. Qf4 {[%clk 0:00:13]}  Qxf4+ {[%clk 0:00:22]} 36. Kxf4 {[%clk 0:00:13]}  Rxh4+ {[%clk 0:00:22]} 37. Ke5 {[%clk 0:00:11]}  Rxb4 {[%clk 0:00:23]} 38. Kd6 {[%clk 0:00:11]}  Rb2 {[%clk 0:00:22]} 39. a4 {[%clk 0:00:07]}  Rxg2 {[%clk 0:00:21]} 40. Kc7 {[%clk 0:00:07]}  h5 {[%clk 0:00:10]} 41. Re4 {[%clk 0:00:07]}  Kh6 {[%clk 0:00:09]} 42. Kb7 {[%clk 0:00:06]}  Rg6 {[%clk 0:00:09]} 43. Kxa7 {[%clk 0:00:06]}  Rf6 {[%clk 0:00:09]} 44. Kb7 {[%clk 0:00:06]}  Kg5 {[%clk 0:00:09]} 45. Re5+ {[%clk 0:00:05]}  Kh6 {[%clk 0:00:07]} 46. Rb5 {[%clk 0:00:04]}  h4 {[%clk 0:00:06]} 47. Rb4 {[%clk 0:00:03]}  Kh5 {[%clk 0:00:05]} 48. Rb5+ {[%clk 0:00:04]}  g5 {[%clk 0:00:05]} 49. f4 {[%clk 0:00:03]}  Rxf4 {[%clk 0:00:05]} 50. Kxb6 {[%clk 0:00:04]}  Rxa4 {[%clk 0:00:05]} 51. Rd5 {[%clk 0:00:03]}  Re4 {[%clk 0:00:05]} 52. Rd8 {[%clk 0:00:04]}  h3 {[%clk 0:00:05]} 53. Rh8+ {[%clk 0:00:04]}  Kg4 {[%clk 0:00:06]} 54. Kc5 {[%clk 0:00:05]}  Kg3 {[%clk 0:00:06]} 55. Kd5 {[%clk 0:00:05]}  Re1 {[%clk 0:00:07]} 56. Rg8 {[%clk 0:00:05]}  g4 {[%clk 0:00:07]} 57. Rh8 {[%clk 0:00:05]}  h2 {[%clk 0:00:07]} 0-1


[Site "https://www.chess.com"]

[Event "Titled Tuesday Blitz August 3 2021"]
[White "Skatchkov, Pavel"]
[Black "Isajevsky, Anton"]
[WhiteFideId "4121848"]
[BlackFideId "4142500"]
[WhiteElo "2476"]
[BlackElo "2510"]
[Result "0-1"]
[Round "11"]
[TimeControl "180+1"]
[Date "2021.08.03"]
[WhiteClock "0:00:02"]
[BlackClock "0:00:05"]

1. d4 {[%clk 0:03:00]}  d5 {[%clk 0:02:59]} 2. c4 {[%clk 0:03:00]}  e6 {[%clk 0:02:59]} 3. Nf3 {[%clk 0:02:59]}  a6 {[%clk 0:02:59]} 4. cxd5 {[%clk 0:02:55]}  exd5 {[%clk 0:02:59]} 5. Nc3 {[%clk 0:02:55]}  c6 {[%clk 0:02:59]} 6. Bf4 {[%clk 0:02:41]}  Bd6 {[%clk 0:02:59]} 7. e3 {[%clk 0:02:40]}  Nf6 {[%clk 0:02:56]} 8. Bd3 {[%clk 0:02:40]}  O-O {[%clk 0:02:56]} 9. O-O {[%clk 0:02:39]}  Bg4 {[%clk 0:02:43]} 10. h3 {[%clk 0:02:13]}  Bh5 {[%clk 0:02:40]} 11. g4 {[%clk 0:02:06]}  Bg6 {[%clk 0:02:24]} 12. Bxd6 {[%clk 0:02:05]}  Qxd6 {[%clk 0:02:24]} 13. Ne5 {[%clk 0:02:05]}  Bxd3 {[%clk 0:02:17]} 14. Qxd3 {[%clk 0:02:05]}  c5 {[%clk 0:02:08]} 15. f4 {[%clk 0:02:00]}  cxd4 {[%clk 0:01:43]} 16. exd4 {[%clk 0:01:59]}  Nc6 {[%clk 0:01:43]} 17. Rad1 {[%clk 0:01:44]}  Rad8 {[%clk 0:01:17]} 18. Rfe1 {[%clk 0:01:09]}  Nd7 {[%clk 0:01:07]} 19. a3 {[%clk 0:00:52]}  f6 {[%clk 0:01:01]} 20. Nxd7 {[%clk 0:00:51]}  Qxd7 {[%clk 0:00:47]} 21. Qf3 {[%clk 0:00:48]}  Kh8 {[%clk 0:00:31]} 22. Kg2 {[%clk 0:00:47]}  Rfe8 {[%clk 0:00:23]} 23. Rxe8+ {[%clk 0:00:46]}  Qxe8 {[%clk 0:00:23]} 24. b4 {[%clk 0:00:41]}  Qe6 {[%clk 0:00:15]} 25. Rd2 {[%clk 0:00:41]}  Qd6 {[%clk 0:00:11]} 26. Kg3 {[%clk 0:00:17]}  Kg8 {[%clk 0:00:11]} 27. Qd3 {[%clk 0:00:16]}  g6 {[%clk 0:00:10]} 28. Qf3 {[%clk 0:00:16]}  Kf7 {[%clk 0:00:10]} 29. Na4 {[%clk 0:00:14]}  Re8 {[%clk 0:00:08]} 30. Nc5 {[%clk 0:00:14]}  b6 {[%clk 0:00:08]} 31. Nxa6 {[%clk 0:00:14]}  Re4 {[%clk 0:00:08]} 32. Qf2 {[%clk 0:00:11]}  g5 {[%clk 0:00:08]} 33. b5 {[%clk 0:00:11]}  Rxf4 {[%clk 0:00:07]} 34. Qg2 {[%clk 0:00:02]}  Rxd4+ {[%clk 0:00:05]} 35. Kf3 {[%clk 0:00:02]}  Qf4+ {[%clk 0:00:05]} 36. Ke2 {[%clk 0:00:02]} 0-1


[Site "https://www.chess.com"]

[Event "Titled Tuesday Blitz August 3 2021"]
[White "Solon, Nathan"]
[Black "FGHSMN"]
[WhiteFideId "2017229"]
[WhiteElo "2667"]
[BlackElo "2557"]
[Result "0-1"]
[Round "11"]
[TimeControl "180+1"]
[Date "2021.08.03"]
[WhiteClock "0:01:15"]
[BlackClock "0:01:06"]

1. d4 {[%clk 0:03:00]}  Nf6 {[%clk 0:02:58]} 2. c4 {[%clk 0:03:00]}  c5 {[%clk 0:02:58]} 3. d5 {[%clk 0:03:00]}  b5 {[%clk 0:02:57]} 4. cxb5 {[%clk 0:03:01]}  a6 {[%clk 0:02:56]} 5. bxa6 {[%clk 0:03:02]}  g6 {[%clk 0:02:56]} 6. Nc3 {[%clk 0:03:02]}  Bxa6 {[%clk 0:02:56]} 7. e4 {[%clk 0:03:02]}  Bxf1 {[%clk 0:02:57]} 8. Kxf1 {[%clk 0:03:03]}  d6 {[%clk 0:02:57]} 9. g3 {[%clk 0:03:04]}  Bg7 {[%clk 0:02:57]} 10. Kg2 {[%clk 0:03:04]}  O-O {[%clk 0:02:56]} 11. Nf3 {[%clk 0:03:04]}  Nbd7 {[%clk 0:02:55]} 12. Qc2 {[%clk 0:03:04]}  Qa5 {[%clk 0:02:53]} 13. Bd2 {[%clk 0:03:04]}  Rfb8 {[%clk 0:02:51]} 14. Rhb1 {[%clk 0:03:04]}  Ng4 {[%clk 0:02:47]} 15. a4 {[%clk 0:03:04]}  Nge5 {[%clk 0:02:34]} 16. Nxe5 {[%clk 0:03:04]}  Nxe5 {[%clk 0:02:35]} 17. Nb5 {[%clk 0:03:04]}  Qb6 {[%clk 0:02:34]} 18. Bc3 {[%clk 0:03:02]}  Qb7 {[%clk 0:02:19]} 19. h3 {[%clk 0:02:57]}  f5 {[%clk 0:02:16]} 20. Rd1 {[%clk 0:02:47]}  Rf8 {[%clk 0:02:05]} 21. exf5 {[%clk 0:02:38]}  Rxf5 {[%clk 0:02:06]} 22. Qe4 {[%clk 0:02:38]}  Raf8 {[%clk 0:01:30]} 23. f4 {[%clk 0:02:38]}  Nf7 {[%clk 0:01:27]} 24. Bxg7 {[%clk 0:02:36]}  Kxg7 {[%clk 0:01:28]} 25. Ra3 {[%clk 0:02:18]}  e5 {[%clk 0:01:21]} 26. Rf3 {[%clk 0:01:54]}  Ng5 {[%clk 0:01:17]} 27. fxg5 {[%clk 0:01:30]}  Rxf3 {[%clk 0:01:18]} 28. Rd2 {[%clk 0:01:30]}  Qf7 {[%clk 0:01:11]} 29. h4 {[%clk 0:01:22]}  Rf2+ {[%clk 0:01:10]} 30. Rxf2 {[%clk 0:01:21]}  Qxf2+ {[%clk 0:01:11]} 31. Kh3 {[%clk 0:01:15]}  Rf3 {[%clk 0:01:06]} 0-1


[Site "https://www.chess.com"]

[Event "Titled Tuesday Blitz August 3 2021"]
[White "Tong, Hai Anh"]
[Black "Garv Gaur"]
[WhiteFideId "12412805"]
[BlackFideId "45030839"]
[WhiteElo "1467"]
[BlackElo "1950"]
[Result "1/2-1/2"]
[Round "11"]
[TimeControl "180+1"]
[Date "2021.08.03"]
[WhiteClock "0:01:52"]
[BlackClock "0:01:26"]

1. Nf3 {[%clk 0:03:00]}  d5 {[%clk 0:02:59]} 2. g3 {[%clk 0:03:00]}  Nf6 {[%clk 0:02:59]} 3. Bg2 {[%clk 0:02:57]}  c5 {[%clk 0:03:00]} 4. O-O {[%clk 0:02:57]}  Nc6 {[%clk 0:03:00]} 5. d4 {[%clk 0:02:56]}  cxd4 {[%clk 0:02:53]} 6. Nxd4 {[%clk 0:02:56]}  e6 {[%clk 0:02:54]} 7. c4 {[%clk 0:02:54]}  Be7 {[%clk 0:02:54]} 8. Nc3 {[%clk 0:02:53]}  O-O {[%clk 0:02:54]} 9. Bg5 {[%clk 0:02:50]}  h6 {[%clk 0:02:49]} 10. Nxc6 {[%clk 0:02:48]}  bxc6 {[%clk 0:02:46]} 11. Bf4 {[%clk 0:02:48]}  Ba6 {[%clk 0:02:37]} 12. cxd5 {[%clk 0:02:46]}  cxd5 {[%clk 0:02:38]} 13. Re1 {[%clk 0:02:46]}  Qb6 {[%clk 0:02:35]} 14. Na4 {[%clk 0:02:42]}  Qa5 {[%clk 0:02:26]} 15. a3 {[%clk 0:02:39]}  Rac8 {[%clk 0:02:20]} 16. b4 {[%clk 0:02:35]}  Qb5 {[%clk 0:02:20]} 17. Be3 {[%clk 0:02:27]}  Rc7 {[%clk 0:02:11]} 18. Nc5 {[%clk 0:02:22]}  Rfc8 {[%clk 0:02:06]} 19. Rc1 {[%clk 0:02:21]}  Bxc5 {[%clk 0:02:03]} 20. Bxc5 {[%clk 0:02:19]}  Nd7 {[%clk 0:02:03]} 21. a4 {[%clk 0:02:15]}  Qb7 {[%clk 0:01:59]} 22. Qd4 {[%clk 0:02:10]}  Nxc5 {[%clk 0:01:57]} 23. Rxc5 {[%clk 0:02:05]}  Rxc5 {[%clk 0:01:57]} 24. bxc5 {[%clk 0:02:06]}  Qc7 {[%clk 0:01:57]} 25. Rc1 {[%clk 0:02:01]}  Bc4 {[%clk 0:01:57]} 26. e4 {[%clk 0:01:58]}  Qxc5 {[%clk 0:01:24]} 27. Qxc5 {[%clk 0:01:57]}  Rxc5 {[%clk 0:01:25]} 28. exd5 {[%clk 0:01:57]}  exd5 {[%clk 0:01:25]} 29. Bxd5 {[%clk 0:01:56]}  Rxd5 {[%clk 0:01:26]} 30. Rxc4 {[%clk 0:01:56]}  Ra5 {[%clk 0:01:26]} 31. Kf1 {[%clk 0:01:52]} 1/2-1/2


[Site "https://www.chess.com"]

[Event "Titled Tuesday Blitz August 3 2021"]
[White "Turzo, Attila"]
[Black "Gerzhoy, Leonid"]
[WhiteFideId "704954"]
[BlackFideId "2806126"]
[WhiteElo "2425"]
[BlackElo "2506"]
[Result "0-1"]
[Round "11"]
[TimeControl "180+1"]
[Date "2021.08.03"]
[WhiteClock "0:00:10"]
[BlackClock "0:00:36"]

1. d4 {[%clk 0:02:53]}  Nf6 {[%clk 0:02:59]} 2. c4 {[%clk 0:02:53]}  d6 {[%clk 0:02:58]} 3. Nf3 {[%clk 0:02:49]}  Nbd7 {[%clk 0:02:58]} 4. Nc3 {[%clk 0:02:49]}  e5 {[%clk 0:02:57]} 5. e4 {[%clk 0:02:49]}  Be7 {[%clk 0:02:56]} 6. Be2 {[%clk 0:02:49]}  O-O {[%clk 0:02:56]} 7. O-O {[%clk 0:02:49]}  c6 {[%clk 0:02:56]} 8. Re1 {[%clk 0:02:48]}  a6 {[%clk 0:02:56]} 9. Rb1 {[%clk 0:02:45]}  b5 {[%clk 0:02:55]} 10. b4 {[%clk 0:02:46]}  Bb7 {[%clk 0:02:54]} 11. a4 {[%clk 0:02:45]}  bxc4 {[%clk 0:02:51]} 12. Bxc4 {[%clk 0:02:45]}  d5 {[%clk 0:02:39]} 13. exd5 {[%clk 0:02:41]}  cxd5 {[%clk 0:02:39]} 14. dxe5 {[%clk 0:02:36]}  dxc4 {[%clk 0:02:38]} 15. exf6 {[%clk 0:02:36]}  Bxf6 {[%clk 0:02:33]} 16. Nd5 {[%clk 0:02:33]}  Bxd5 {[%clk 0:02:31]} 17. Qxd5 {[%clk 0:02:33]}  Nb6 {[%clk 0:02:29]} 18. Qxd8 {[%clk 0:01:47]}  Rfxd8 {[%clk 0:02:28]} 19. a5 {[%clk 0:01:47]}  Nd5 {[%clk 0:02:27]} 20. Bg5 {[%clk 0:01:44]}  Bxg5 {[%clk 0:02:22]} 21. Nxg5 {[%clk 0:01:45]}  Rab8 {[%clk 0:02:15]} 22. Kf1 {[%clk 0:01:33]}  Rxb4 {[%clk 0:02:07]} 23. Rbc1 {[%clk 0:01:29]}  c3 {[%clk 0:01:56]} 24. Ne4 {[%clk 0:01:28]}  Rc4 {[%clk 0:01:48]} 25. Rc2 {[%clk 0:01:24]}  h6 {[%clk 0:01:31]} 26. f3 {[%clk 0:01:03]}  f5 {[%clk 0:01:20]} 27. Nf2 {[%clk 0:00:54]}  Nb4 {[%clk 0:01:18]} 28. Rcc1 {[%clk 0:00:50]}  c2 {[%clk 0:01:17]} 29. Ke2 {[%clk 0:00:50]}  Na2 {[%clk 0:01:13]} 30. Nd3 {[%clk 0:00:47]}  Nxc1+ {[%clk 0:01:11]} 31. Rxc1 {[%clk 0:00:48]}  Kh7 {[%clk 0:00:55]} 32. Ne1 {[%clk 0:00:46]}  Rdc8 {[%clk 0:00:44]} 33. Kd2 {[%clk 0:00:15]}  R4c5 {[%clk 0:00:42]} 34. Nxc2 {[%clk 0:00:15]}  Rxa5 {[%clk 0:00:41]} 35. Kd3 {[%clk 0:00:14]}  Rac5 {[%clk 0:00:39]} 36. Kd2 {[%clk 0:00:11]}  a5 {[%clk 0:00:39]} 37. Kd3 {[%clk 0:00:08]}  a4 {[%clk 0:00:38]} 38. Kd2 {[%clk 0:00:08]}  a3 {[%clk 0:00:38]} 39. Kd3 {[%clk 0:00:08]}  a2 {[%clk 0:00:38]} 40. Kd2 {[%clk 0:00:09]}  Rxc2+ {[%clk 0:00:36]} 41. Rxc2 {[%clk 0:00:09]}  Rxc2+ {[%clk 0:00:36]} 42. Kxc2 {[%clk 0:00:10]}  a1=Q {[%clk 0:00:36]} 0-1


[Site "https://www.chess.com"]

[Event "Titled Tuesday Blitz August 3 2021"]
[White "Urazayev, Arystanbek"]
[Black "Vasquez Schroeder, Rodrigo"]
[WhiteFideId "13709810"]
[BlackFideId "3400042"]
[WhiteElo "2321"]
[BlackElo "2572"]
[Result "0-1"]
[Round "11"]
[TimeControl "180+1"]
[Date "2021.08.03"]
[WhiteClock "0:00:07"]
[BlackClock "0:01:21"]

1. d4 {[%clk 0:03:00]}  Nf6 {[%clk 0:02:58]} 2. c4 {[%clk 0:03:01]}  e6 {[%clk 0:02:58]} 3. Nc3 {[%clk 0:03:02]}  Bb4 {[%clk 0:02:58]} 4. g3 {[%clk 0:03:02]}  O-O {[%clk 0:02:55]} 5. Bg2 {[%clk 0:03:03]}  d5 {[%clk 0:02:55]} 6. Nf3 {[%clk 0:03:03]}  b6 {[%clk 0:02:54]} 7. O-O {[%clk 0:03:03]}  Bb7 {[%clk 0:02:52]} 8. Ne5 {[%clk 0:03:03]}  Qc8 {[%clk 0:02:52]} 9. Bg5 {[%clk 0:02:57]}  Bxc3 {[%clk 0:02:49]} 10. bxc3 {[%clk 0:02:57]}  Ne4 {[%clk 0:02:47]} 11. Bd2 {[%clk 0:02:41]}  f6 {[%clk 0:02:44]} 12. Nf3 {[%clk 0:02:29]}  dxc4 {[%clk 0:02:41]} 13. Qc2 {[%clk 0:02:27]}  Bd5 {[%clk 0:02:38]} 14. Bc1 {[%clk 0:02:25]}  Nd6 {[%clk 0:02:34]} 15. Nd2 {[%clk 0:02:23]}  Bxg2 {[%clk 0:02:33]} 16. Kxg2 {[%clk 0:02:24]}  Qb7+ {[%clk 0:02:29]} 17. Kg1 {[%clk 0:02:22]}  Nd7 {[%clk 0:02:24]} 18. Ba3 {[%clk 0:02:22]}  b5 {[%clk 0:02:23]} 19. e4 {[%clk 0:02:22]}  Rfe8 {[%clk 0:02:15]} 20. Rab1 {[%clk 0:02:22]}  Qc6 {[%clk 0:02:14]} 21. Rfe1 {[%clk 0:02:21]}  a6 {[%clk 0:02:13]} 22. Nf3 {[%clk 0:02:20]}  e5 {[%clk 0:02:09]} 23. Rbd1 {[%clk 0:02:00]}  Qb6 {[%clk 0:02:09]} 24. Nh4 {[%clk 0:01:38]}  exd4 {[%clk 0:02:04]} 25. cxd4 {[%clk 0:01:26]}  b4 {[%clk 0:02:03]} 26. Bc1 {[%clk 0:01:26]}  c3 {[%clk 0:02:03]} 27. Bf4 {[%clk 0:01:17]}  Nf7 {[%clk 0:01:57]} 28. Nf5 {[%clk 0:01:09]}  a5 {[%clk 0:01:55]} 29. Qa4 {[%clk 0:01:03]}  c6 {[%clk 0:01:49]} 30. e5 {[%clk 0:00:49]}  fxe5 {[%clk 0:01:44]} 31. dxe5 {[%clk 0:00:49]}  Ndxe5 {[%clk 0:01:33]} 32. Bxe5 {[%clk 0:00:41]}  Nxe5 {[%clk 0:01:32]} 33. Qb3+ {[%clk 0:00:41]}  Kh8 {[%clk 0:01:31]} 34. Nd6 {[%clk 0:00:25]}  Nf3+ {[%clk 0:01:28]} 35. Kh1 {[%clk 0:00:20]}  Rf8 {[%clk 0:01:24]} 36. Nf7+ {[%clk 0:00:14]}  Rxf7 {[%clk 0:01:23]} 37. Qxf7 {[%clk 0:00:14]}  Nxe1 {[%clk 0:01:22]} 38. Rxe1 {[%clk 0:00:14]}  Qd8 {[%clk 0:01:21]} 39. Qf5 {[%clk 0:00:07]}  Qd5+ {[%clk 0:01:21]} 0-1


[Site "https://www.chess.com"]

[Event "Titled Tuesday Blitz August 3 2021"]
[White "Xie, Bryan"]
[Black "Nguyen, Hong Anh"]
[WhiteFideId "30941296"]
[BlackFideId "12406732"]
[WhiteElo "1899"]
[BlackElo "1974"]
[Result "0-1"]
[Round "11"]
[TimeControl "180+1"]
[Date "2021.08.03"]
[WhiteClock "0:00:19"]
[BlackClock "0:00:15"]

1. e4 {[%clk 0:03:00]}  c5 {[%clk 0:02:49]} 2. Nf3 {[%clk 0:02:56]}  Nc6 {[%clk 0:02:47]} 3. d4 {[%clk 0:02:56]}  cxd4 {[%clk 0:02:47]} 4. Nxd4 {[%clk 0:02:57]}  g6 {[%clk 0:02:47]} 5. Nc3 {[%clk 0:02:57]}  Bg7 {[%clk 0:02:47]} 6. Be3 {[%clk 0:02:57]}  Nf6 {[%clk 0:02:47]} 7. Bc4 {[%clk 0:02:58]}  Qa5 {[%clk 0:02:45]} 8. f3 {[%clk 0:02:56]}  Qb4 {[%clk 0:02:44]} 9. Nxc6 {[%clk 0:02:43]}  bxc6 {[%clk 0:02:29]} 10. Bb3 {[%clk 0:02:34]}  Ba6 {[%clk 0:02:28]} 11. Qd2 {[%clk 0:02:33]}  O-O {[%clk 0:02:26]} 12. O-O-O {[%clk 0:02:26]}  Rfd8 {[%clk 0:02:13]} 13. Bh6 {[%clk 0:02:16]}  d5 {[%clk 0:02:09]} 14. e5 {[%clk 0:02:11]}  Nd7 {[%clk 0:02:01]} 15. Bxg7 {[%clk 0:02:06]}  Kxg7 {[%clk 0:02:00]} 16. f4 {[%clk 0:01:57]}  Nc5 {[%clk 0:01:53]} 17. g4 {[%clk 0:01:45]}  Rab8 {[%clk 0:01:19]} 18. h4 {[%clk 0:01:41]}  d4 {[%clk 0:01:18]} 19. Nb1 {[%clk 0:01:35]}  Nxb3+ {[%clk 0:01:09]} 20. axb3 {[%clk 0:01:33]}  d3 {[%clk 0:00:57]} 21. c3 {[%clk 0:01:13]}  Qxb3 {[%clk 0:00:55]} 22. f5 {[%clk 0:01:08]}  Qc2+ {[%clk 0:00:29]} 23. Qxc2 {[%clk 0:01:04]}  dxc2 {[%clk 0:00:30]} 24. Kxc2 {[%clk 0:01:05]}  Be2 {[%clk 0:00:29]} 25. Rxd8 {[%clk 0:00:58]}  Rxd8 {[%clk 0:00:29]} 26. Rg1 {[%clk 0:00:58]}  Bd3+ {[%clk 0:00:28]} 27. Kc1 {[%clk 0:00:55]}  Bxb1 {[%clk 0:00:26]} 28. Kxb1 {[%clk 0:00:55]}  Rd2 {[%clk 0:00:26]} 29. Re1 {[%clk 0:00:47]}  Rg2 {[%clk 0:00:24]} 30. Re4 {[%clk 0:00:47]}  h5 {[%clk 0:00:21]} 31. fxg6 {[%clk 0:00:44]}  Rxg4 {[%clk 0:00:18]} 32. Re2 {[%clk 0:00:38]}  fxg6 {[%clk 0:00:16]} 33. Rh2 {[%clk 0:00:39]}  Re4 {[%clk 0:00:16]} 34. Kc2 {[%clk 0:00:39]}  Rxe5 {[%clk 0:00:16]} 35. Kd3 {[%clk 0:00:40]}  Rd5+ {[%clk 0:00:16]} 36. Ke4 {[%clk 0:00:40]}  Kf6 {[%clk 0:00:16]} 37. Rf2+ {[%clk 0:00:40]}  Ke6 {[%clk 0:00:16]} 38. Rg2 {[%clk 0:00:40]}  Kf6 {[%clk 0:00:17]} 39. Rf2+ {[%clk 0:00:40]}  Rf5 {[%clk 0:00:17]} 40. Rd2 {[%clk 0:00:41]}  Re5+ {[%clk 0:00:16]} 41. Kf4 {[%clk 0:00:41]}  Rd5 {[%clk 0:00:17]} 42. Re2 {[%clk 0:00:39]}  e6 {[%clk 0:00:17]} 43. Rg2 {[%clk 0:00:37]}  Rf5+ {[%clk 0:00:17]} 44. Ke4 {[%clk 0:00:37]}  Re5+ {[%clk 0:00:17]} 45. Kf4 {[%clk 0:00:37]}  Rd5 {[%clk 0:00:17]} 46. Ke4 {[%clk 0:00:36]}  Rd1 {[%clk 0:00:17]} 47. Rf2+ {[%clk 0:00:36]}  Kg7 {[%clk 0:00:17]} 48. Ke5 {[%clk 0:00:33]}  Rh1 {[%clk 0:00:17]} 49. Rf4 {[%clk 0:00:31]}  Re1+ {[%clk 0:00:15]} 50. Kd6 {[%clk 0:00:32]}  e5 {[%clk 0:00:15]} 51. Rf2 {[%clk 0:00:29]}  e4 {[%clk 0:00:16]} 52. Kxc6 {[%clk 0:00:29]}  e3 {[%clk 0:00:16]} 53. Rg2 {[%clk 0:00:29]}  Rf1 {[%clk 0:00:14]} 54. Re2 {[%clk 0:00:27]}  Rf3 {[%clk 0:00:14]} 55. Kd5 {[%clk 0:00:27]}  Kf6 {[%clk 0:00:14]} 56. c4 {[%clk 0:00:26]}  g5 {[%clk 0:00:12]} 57. hxg5+ {[%clk 0:00:26]}  Kxg5 {[%clk 0:00:13]} 58. c5 {[%clk 0:00:26]}  Kf4 {[%clk 0:00:12]} 59. c6 {[%clk 0:00:26]}  Rg3 {[%clk 0:00:13]} 60. Kd4 {[%clk 0:00:20]}  Rg8 {[%clk 0:00:12]} 61. Rxe3 {[%clk 0:00:20]}  Rd8+ {[%clk 0:00:12]} 62. Kc5 {[%clk 0:00:19]}  Kxe3 {[%clk 0:00:13]} 63. c7 {[%clk 0:00:19]}  Rc8 {[%clk 0:00:13]} 64. Kc6 {[%clk 0:00:20]}  h4 {[%clk 0:00:13]} 65. b4 {[%clk 0:00:19]}  h3 {[%clk 0:00:13]} 66. b5 {[%clk 0:00:19]}  h2 {[%clk 0:00:13]} 67. Kd7 {[%clk 0:00:20]}  Rxc7+ {[%clk 0:00:14]} 68. Kxc7 {[%clk 0:00:20]}  h1=Q {[%clk 0:00:14]} 69. Kb8 {[%clk 0:00:19]}  Qb1 {[%clk 0:00:14]} 70. Kxa7 {[%clk 0:00:19]}  Qxb5 {[%clk 0:00:15]} 0-1


[Site "https://www.chess.com"]

[Event "Titled Tuesday Blitz August 3 2021"]
[White "Xiong, Jeffery"]
[Black "Samadov, Read"]
[WhiteFideId "2047640"]
[BlackFideId "13417444"]
[WhiteElo "2724"]
[BlackElo "2084"]
[Result "1-0"]
[Round "11"]
[TimeControl "180+1"]
[Date "2021.08.03"]
[WhiteClock "0:00:13"]
[BlackClock "0:00:02"]

1. c4 {[%clk 0:03:00]}  e5 {[%clk 0:02:59]} 2. d3 {[%clk 0:03:00]}  Nf6 {[%clk 0:03:00]} 3. Nf3 {[%clk 0:03:00]}  Nc6 {[%clk 0:02:59]} 4. a3 {[%clk 0:03:00]}  a5 {[%clk 0:02:50]} 5. g3 {[%clk 0:03:00]}  Bc5 {[%clk 0:02:47]} 6. Bg2 {[%clk 0:03:00]}  d6 {[%clk 0:02:47]} 7. O-O {[%clk 0:03:00]}  O-O {[%clk 0:02:47]} 8. Nc3 {[%clk 0:03:00]}  h6 {[%clk 0:02:45]} 9. e3 {[%clk 0:03:00]}  Ba7 {[%clk 0:02:41]} 10. h3 {[%clk 0:02:59]}  Re8 {[%clk 0:02:40]} 11. b3 {[%clk 0:02:58]}  d5 {[%clk 0:02:33]} 12. Nb5 {[%clk 0:02:53]}  Bb6 {[%clk 0:02:31]} 13. Bb2 {[%clk 0:02:53]}  dxc4 {[%clk 0:02:21]} 14. dxc4 {[%clk 0:02:53]}  Qe7 {[%clk 0:02:21]} 15. Qe2 {[%clk 0:02:50]}  Bf5 {[%clk 0:02:20]} 16. Rfd1 {[%clk 0:02:50]}  Rad8 {[%clk 0:02:20]} 17. Kh2 {[%clk 0:02:46]}  Be4 {[%clk 0:02:11]} 18. Nc3 {[%clk 0:02:43]}  Bxf3 {[%clk 0:01:51]} 19. Qxf3 {[%clk 0:02:44]}  e4 {[%clk 0:01:47]} 20. Qf5 {[%clk 0:02:44]}  Rxd1 {[%clk 0:01:20]} 21. Rxd1 {[%clk 0:02:44]}  Bc5 {[%clk 0:01:11]} 22. Nd5 {[%clk 0:02:25]}  Nxd5 {[%clk 0:01:09]} 23. Rxd5 {[%clk 0:02:25]}  Bd6 {[%clk 0:00:52]} 24. c5 {[%clk 0:02:23]}  Be5 {[%clk 0:00:48]} 25. Rd7 {[%clk 0:02:22]}  Qf8 {[%clk 0:00:27]} 26. Bxe5 {[%clk 0:01:54]}  Rxe5 {[%clk 0:00:28]} 27. Qf4 {[%clk 0:01:54]}  Rxc5 {[%clk 0:00:16]} 28. Rxc7 {[%clk 0:01:35]}  Ne5 {[%clk 0:00:15]} 29. Rxc5 {[%clk 0:01:15]}  Qxc5 {[%clk 0:00:16]} 30. Qxe4 {[%clk 0:01:16]}  b6 {[%clk 0:00:15]} 31. b4 {[%clk 0:00:40]}  axb4 {[%clk 0:00:15]} 32. axb4 {[%clk 0:00:41]}  Qd6 {[%clk 0:00:13]} 33. f4 {[%clk 0:00:41]}  Nd7 {[%clk 0:00:12]} 34. Qc6 {[%clk 0:00:32]}  Qd2 {[%clk 0:00:09]} 35. e4 {[%clk 0:00:28]}  Qd4 {[%clk 0:00:06]} 36. e5 {[%clk 0:00:28]}  Nf8 {[%clk 0:00:05]} 37. Qd6 {[%clk 0:00:25]}  Qxd6 {[%clk 0:00:02]} 38. exd6 {[%clk 0:00:26]}  Ne6 {[%clk 0:00:03]} 39. Bd5 {[%clk 0:00:21]}  Kf8 {[%clk 0:00:01]} 40. f5 {[%clk 0:00:14]}  Nd8 {[%clk 0:00:01]} 41. b5 {[%clk 0:00:15]}  Ke8 {[%clk 0:00:02]} 42. Bc6+ {[%clk 0:00:15]}  Kf8 {[%clk 0:00:02]} 43. Kg2 {[%clk 0:00:15]}  f6 {[%clk 0:00:01]} 44. Bd5 {[%clk 0:00:12]}  Ke8 {[%clk 0:00:01]} 45. Bc6+ {[%clk 0:00:12]}  Kf7 {[%clk 0:00:01]} 46. Kf3 {[%clk 0:00:12]}  Kf8 {[%clk 0:00:02]} 47. Ke4 {[%clk 0:00:12]}  Nf7 {[%clk 0:00:02]} 48. Kd5 {[%clk 0:00:13]}  Ne5 {[%clk 0:00:02]} 49. Ke6 {[%clk 0:00:13]} 1-0


[Site "https://www.chess.com"]